[Event "Budapest Spring Festival 2019"]
[Site "Budapest"]
[Date "2019.04.13"]
[Round "5.34"]
[White "Erenberg, Ariel"]
[Black "Havanecz, Bianka"]
[Result "1/2-1/2"]
[ECO "D16"]
[WhiteElo "2437"]
[BlackElo "2265"]
[Annotator "NA RC"]
[PlyCount "83"]
[EventDate "2019.04.09"]
[EventType "swiss"]
[EventCountry "HUN"]
[SourceTitle "playchess.com"]
[Source "ChessBase"]
[SourceQuality "1"]
[TimeControl "40/5400+30:1800+30"]

1. c4 {[%emt 0:00:05]} c6 {[%emt 0:00:05]} 2. d4 {[%emt 0:01:39]} d5 {[%emt 0:00:05]} 3. Nc3 {[%emt 0:01:21]} Nf6 {[%emt 0:00:06]} 4. Nf3 {[%emt 0:00:56]} dxc4 {[%emt 0:00:17]} 5. a4 {[%emt 0:00:59]} e6 {[%emt 0:00:06]} 6. e3 {[%emt 0:05:34]} c5 {[%emt 0:00:06]} 7. Bxc4 {[%emt 0:00:11]} Nc6 {[%emt 0:00:10]} 8. O-O {[%emt 0:01:12]} Be7 {[%emt 0:01:33]} 9. Qe2 {[%emt 0:03:32]} cxd4 {[%emt 0:00:08]} 10. Rd1 {[%emt 0:00:27]} O-O {[%emt 0:00:07]} 11. exd4 {[%emt 0:00:11]} Nb4 {[%emt 0:00:10]} 12. Ne5 {[%emt 0:06:02]} b6 {[%emt 0:00:06]} 13. Bf4 {[%emt 0:10:19]} Nfd5 {[%emt 0:08:20]} 14. Bd2 {[%emt 0:12:26]} Bb7 {[%emt 0:00:42]} 15. Rac1 {[%emt 0:00:37]} Rc8 {[%emt 0:13:09]} 16. Ne4 {[%emt 0:01:43]} Nc6 {[%emt 0:06:54]} 17. Nxc6 {[%emt 0:05:26]} Bxc6 {[%emt 0:02:19]} 18. a5 {[%emt 0:00:33]} Qd7 {[%emt 0:02:49]} 19. b3 {[%emt 0:09:37]} h6 {[%emt 0:16:51]} 20. Ng3 {[%emt 0:04:23]} bxa5 {[%emt 0:04:07]} 21. Nh5 {[%emt 0:04:09]} Bg5 {[%emt 0:03:36]} 22. Bxg5 {[%emt 0:02:23]} hxg5 {[%emt 0:00:01]} 23. Qd2 {[%emt 0:01:55]} Qd8 {[%emt 0:06:49]} 24. Ba6 {[%emt 0:01:58]} Rc7 {[%emt 0:00:04]} 25. Qxa5 {[%emt 0:00:30]} Ba8 {[%emt 0:00:28]} 26. Rxc7 {[%emt 0:06:22]} Qxc7 {[%emt 0:00:13]} 27. Qxc7 {[%emt 0:00:06]} Nxc7 {[%emt 0:00:03]} 28. Bc4 {[%emt 0:00:50]} Rd8 {[%emt 0:01:03]} 29. Ng3 {[%emt 0:01:53]} Bc6 {[%emt 0:05:30]} 30. Ne2 Nb5 {[%emt 0:00:51]} 31. f3 {[%emt 0:02:09]} Kf8 {[%emt 0:01:26]} 32. Kf2 {[%emt 0:00:46]} Ke7 {[%emt 0:00:37]} 33. Ra1 {[%emt 0:03:01]} Nxd4 {[%emt 0:03:50]} 34. Rxa7+ {[%emt 0:00:04]} Kf6 {[%emt 0:00:22]} 35. Rc7 {[%emt 0:00:52]} Nxe2 {[%emt 0:05:53]} 36. Bxe2 {[%emt 0:00:21]} Bd5 {[%emt 0:00:55]} 37. b4 {[%emt 0:00:08]} Rb8 {[%emt 0:00:31]} 38. b5 {[%emt 0:00:11]} Rb7 {[%emt 0:02:22]} 39. Rc2 {[%emt 0:04:05]} Ke5 {[%emt 0:00:16]} 40. Ke3 {[%emt 0:00:00]} Kd6 {[%emt 0:00:00]} 41. Bd3 {[%emt 0:03:12]} Ra7 {[%emt 0:04:09]} 42. Kd2 1/2-1/2

[Event "Budapest Spring Festival 2019"]
[Site "Budapest"]
[Date "2019.04.13"]
[Round "5.36"]
[White "Bodi, Tibor"]
[Black "Horvath, Dominik"]
[Result "0-1"]
[ECO "A06"]
[WhiteElo "2240"]
[BlackElo "2412"]
[Annotator "NA RC"]
[PlyCount "56"]
[EventDate "2019.04.09"]
[EventType "swiss"]
[EventCountry "HUN"]
[SourceTitle "playchess.com"]
[Source "ChessBase"]
[SourceQuality "1"]
[TimeControl "40/5400+30:1800+30"]

1. Nf3 {[%emt 0:00:23]} d5 {[%emt 0:00:07]} 2. e3 {[%emt 0:00:10]} Nf6 {[%emt 0:00:43]} 3. b3 {[%emt 0:00:11]} e6 {[%emt 0:00:44]} 4. Bb2 {[%emt 0:00:06]} b6 {[%emt 0:01:21]} 5. Ne5 {[%emt 0:01:44]} Bb7 {[%emt 0:03:28]} 6. Be2 {[%emt 0:03:06]} Be7 {[%emt 0:02:15]} 7. O-O {[%emt 0:00:30]} O-O {[%emt 0:00:05]} 8. d4 {[%emt 0:05:10]} c5 {[%emt 0:06:47]} 9. Nd2 {[%emt 0:01:09]} cxd4 {[%emt 0:04:16]} 10. exd4 {[%emt 0:00:21]} Qc7 {[%emt 0:02:51]} 11. Rc1 {[%emt 0:03:49]} Nbd7 {[%emt 0:08:58]} 12. Bd3 {[%emt 0:09:52]} a5 {[%emt 0:06:36]} 13. Qe2 {[%emt 0:02:25]} a4 {[%emt 0:02:19]} 14. f4 {[%emt 0:04:40]} g6 {[%emt 0:04:08]} 15. g4 {[%emt 0:08:06]} Qd8 {[%emt 0:03:00]} 16. Rce1 {[%emt 0:03:49]} axb3 {[%emt 0:00:36]} 17. axb3 {[%emt 0:00:08]} Ra2 {[%emt 0:01:09]} 18. Bc1 {[%emt 0:04:21]} Qc7 {[%emt 0:08:20]} 19. Rf2 {[%emt 0:18:16]} Ne4 {[%emt 0:05:34]} 20. Nxe4 {[%emt 0:03:17]} dxe4 {[%emt 0:00:41]} 21. Bxe4 {[%emt 0:00:25]} Bh4 {[%emt 0:02:19]} 22. Bxb7 {[%emt 0:05:57]} Bxf2+ {[%emt 0:00:59]} 23. Qxf2 {[%emt 0:00:09]} Nxe5 {[%emt 0:03:44]} 24. Be4 {[%emt 0:03:50]} Nxg4 {[%emt 0:01:06]} 25. Qh4 {[%emt 0:00:34]} Qc3 {[%emt 0:04:28]} 26. Kf1 {[%emt 0:03:26]} f5 {[%emt 0:02:30]} 27. Bd3 {[%emt 0:01:36]} Qxd4 {[%emt 0:02:42]} 28. h3 {[%emt 0:01:27]} Qxd3+ 0-1

[Event "Budapest Spring Festival 2019"]
[Site "Budapest"]
[Date "2019.04.13"]
[Round "5.37"]
[White "Szeberenyi, Adam"]
[Black "Bhambure, Shantanu"]
[Result "1/2-1/2"]
[ECO "A46"]
[WhiteElo "2392"]
[BlackElo "2261"]
[Annotator "NA"]
[PlyCount "107"]
[EventDate "2019.04.09"]
[EventType "swiss"]
[EventCountry "HUN"]
[SourceTitle "playchess.com"]
[Source "ChessBase"]
[SourceQuality "1"]
[TimeControl "40/5400+30:1800+30"]

1. d4 {[%emt 0:02:10]} Nf6 {[%emt 0:00:06]} 2. Nf3 {[%emt 0:00:14]} e6 {[%emt 0:00:07]} 3. Bf4 {[%emt 0:00:18]} c5 {[%emt 0:02:10]} 4. e3 {[%emt 0:00:33]} Qb6 {[%emt 0:03:53]} 5. Qc1 {[%emt 0:04:53]} d5 {[%emt 0:02:21]} 6. c3 {[%emt 0:04:33]} Nc6 {[%emt 0:00:41]} 7. Nbd2 {[%emt 0:01:13]} Be7 {[%emt 0:00:33]} 8. Bd3 {[%emt 0:02:14]} Bd7 {[%emt 0:08:59] D02: 1 d4 d5 2 Nf3 sidelines, including 2...Nf6 3 g3 and 2...Nf6 3 Bf4} (8... O-O 9. O-O h6 10. h3 Bd7 11. Ne5 Rac8 12. Nxd7 Nxd7 13. Nf3 cxd4 14. exd4 Bf6 15. Qd2 e5 16. dxe5 Ndxe5 17. Nxe5 Nxe5 {½-½ (26) Moskalenko,A (2490)-Ponomarenko,A (2240) Sochi 2016}) 9. O-O {[%emt 0:11:46]} O-O {[%emt 0:07:34]} 10. Qb1 {[%emt 0:05:33]} h6 {[%emt 0:03:17]} 11. h3 {[%emt 0:01:05]} Rac8 {[%emt 0:07:05]} 12. Re1 $146 {[%emt 0:15:52]} ({Predecessor:} 12. Ne5 Nxe5 13. dxe5 Ne8 14. a4 f5 15. Bh2 g5 16. g4 Ng7 17. a5 Qc7 18. Qa2 Bc6 19. f4 gxf4 20. Bxf4 {0-1 (48) Puschmann,L-Farago,I Budapest 1972}) 12... Rfd8 {[%emt 0:07:39]} 13. Ne5 {[%emt 0:07:47]} Nxe5 {[%emt 0:03:15]} 14. Bxe5 {[%emt 0:00:35]} Bb5 {[%emt 0:05:58]} 15. Bc2 {[%emt 0:04:53]} Nd7 {[%emt 0:02:16]} 16. Bf4 {[%emt 0:06:10]} Bd6 {[%emt 0:05:07]} 17. a4 {[%emt 0:02:11]} Bxf4 {[%emt 0:02:01]} 18. exf4 {[%emt 0:00:10]} Ba6 {[%emt 0:06:21]} 19. Nf3 {[%emt 0:05:12]} cxd4 {[%emt 0:04:50]} 20. Nxd4 {[%emt 0:00:11]} Qd6 {[%emt 0:01:15]} 21. Qc1 {[%emt 0:01:26]} Re8 {[%emt 0:05:06]} 22. Qd2 {[%emt 0:06:37]} Rcd8 {[%emt 0:03:58]} 23. Rad1 {[%emt 0:00:49]} b6 {[%emt 0:01:07]} 24. Nf3 {[%emt 0:03:32]} Nf8 {[%emt 0:03:09]} 25. Qd4 {[%emt 0:05:35]} Qc5 {[%emt 0:01:18]} 26. Re3 {[%emt 0:00:30]} Qxd4 {[%emt 0:06:45]} 27. Nxd4 {[%emt 0:00:09]} Rc8 {[%emt 0:01:32]} 28. Rde1 {[%emt 0:00:20]} Nd7 {[%emt 0:00:34]} 29. Nf3 {[%emt 0:00:56]} Nf6 {[%emt 0:02:42]} 30. Ne5 {[%emt 0:05:21]} d4 {[%emt 0:00:35]} 31. Rg3 {[%emt 0:00:58]} dxc3 {[%emt 0:01:05]} 32. bxc3 {[%emt 0:00:42]} Nd5 {[%emt 0:00:47]} 33. f5 {[%emt 0:00:57]} Rxc3 {[%emt 0:00:57]} 34. Rxc3 {[%emt 0:00:25]} Nxc3 {[%emt 0:00:02]} 35. Bb3 {[%emt 0:00:25]} Ne2+ {[%emt 0:01:13]} 36. Kh2 {[%emt 0:00:10]} Nd4 {[%emt 0:00:23]} 37. fxe6 {[%emt 0:00:12]} f6 {[%emt 0:00:50]} 38. Bc4 {[%emt 0:01:50]} Bxc4 {[%emt 0:00:38]} 39. Nxc4 {[%emt 0:00:20]} Rxe6 {[%emt 0:00:06]} 40. Rd1 {[%emt 0:00:00]} Nc6 {[%emt 0:00:00]} 41. Ne3 {[%emt 0:03:47]} Kf7 {[%emt 0:14:02]} 42. Nf5 $1 {[%emt 0:01:11]} Ne7 {[%emt 0:04:56]} 43. Nd6+ {[%emt 0:01:15]} Kg6 {[%emt 0:00:42]} 44. Nb5 {[%emt 0:09:24]} Re4 {[%emt 0:06:53]} 45. Rd7 {[%emt 0:02:18]} a5 {[%emt 0:04:11]} 46. f3 {[%emt 0:00:39] [#]} Re2 $1 {[%emt 0:00:36]} 47. Nc7 {[%emt 0:06:50]} Nf5 {[%emt 0:02:27]} 48. Nd5 {[%emt 0:00:16]} Rb2 {[%emt 0:00:29]} 49. Nf4+ $11 {[%emt 0:06:02]} Kh7 {[%emt 0:00:18]} 50. Nh5 {[%emt 0:00:28]} Kg6 {[%emt 0:00:50]} 51. Nf4+ {[%emt 0:00:04]} Kh7 {[%emt 0:00:59]} 52. Nh5 {[%emt 0:00:03]} Kg6 {[%emt 0:00:44]} 53. Nf4+ {[%emt 0:00:12]} Kh7 {[%emt 0:00:02]} 54. Nh5 {[%emt 0:00:05]} 1/2-1/2

[Event "Budapest Spring Festival 2019"]
[Site "Budapest"]
[Date "2019.04.13"]
[Round "5.38"]
[White "Lye, Lik Zang"]
[Black "Kormos, Adam"]
[Result "1-0"]
[ECO "A41"]
[WhiteElo "2377"]
[BlackElo "2257"]
[Annotator "NA"]
[PlyCount "47"]
[EventDate "2019.04.09"]
[EventType "swiss"]
[EventCountry "HUN"]
[SourceTitle "playchess.com"]
[Source "ChessBase"]
[SourceQuality "1"]
[TimeControl "40/5400+30:1800+30"]

1. d4 {[%emt 0:00:03]} d6 {[%emt 0:05:48]} 2. Nf3 {[%emt 0:00:19]} Bf5 {[%emt 0:01:47]} 3. g3 {[%emt 0:02:01]} Nf6 {[%emt 0:00:28]} 4. Bg2 {[%emt 0:00:25]} c6 {[%emt 0:00:08]} 5. O-O {[%emt 0:01:34]} Nbd7 {[%emt 0:01:41]} 6. c4 {[%emt 0:01:09]} e5 {[%emt 0:01:36]} 7. Nc3 {[%emt 0:01:05]} Bg6 {[%emt 0:02:42]} 8. Nh4 {[%emt 0:11:22]} Be7 {[%emt 0:01:03]} 9. d5 {[%emt 0:02:18]} Qc7 {[%emt 0:03:29]} 10. b3 {[%emt 0:17:55]} Rd8 {[%emt 0:16:10]} 11. Bb2 {[%emt 0:01:16]} Nh5 {[%emt 0:06:22]} 12. Nxg6 {[%emt 0:10:28]} hxg6 {[%emt 0:00:06]} 13. Qd3 {[%emt 0:00:39]} c5 {[%emt 0:09:41]} 14. f4 {[%emt 0:10:16]} exf4 {[%emt 0:17:33]} 15. gxf4 {[%emt 0:03:01]} g5 {[%emt 0:00:23]} 16. fxg5 {[%emt 0:06:11]} Bxg5 {[%emt 0:01:09]} 17. Rf5 {[%emt 0:08:23]} Bf6 {[%emt 0:13:33]} 18. Qh3 {[%emt 0:02:53]} Qa5 {[%emt 0:10:57]} 19. Raf1 {[%emt 0:10:43]} Bd4+ {[%emt 0:03:52]} 20. e3 {[%emt 0:00:37]} Bxc3 {[%emt 0:00:11]} 21. Rxf7 {[%emt 0:01:47]} Rh6 {[%emt 0:00:05]} 22. Qxd7+ {[%emt 0:00:23]} Rxd7 {[%emt 0:00:14]} 23. Rf8+ {[%emt 0:00:02]} Ke7 {[%emt 0:00:04]} 24. R1f7# {[%emt 0:00:03]} 1-0

[Event "Budapest Spring Festival 2019"]
[Site "Budapest"]
[Date "2019.04.13"]
[Round "5.39"]
[White "Popovics, Adam"]
[Black "Abhilash, Reddy M.L."]
[Result "1/2-1/2"]
[ECO "C54"]
[WhiteElo "2375"]
[BlackElo "2252"]
[Annotator "NA"]
[PlyCount "64"]
[EventDate "2019.04.09"]
[EventType "swiss"]
[EventCountry "HUN"]
[SourceTitle "playchess.com"]
[Source "ChessBase"]
[SourceQuality "1"]
[TimeControl "40/5400+30:1800+30"]

1. e4 {[%emt 0:00:04]} e5 {[%emt 0:00:18]} 2. Nf3 {[%emt 0:00:46]} Nc6 {[%emt 0:00:02]} 3. Bc4 {[%emt 0:00:56]} Bc5 {[%emt 0:00:02]} 4. c3 {[%emt 0:00:29]} Nf6 {[%emt 0:00:01]} 5. d3 {[%emt 0:00:21]} d6 {[%emt 0:00:10]} 6. O-O {[%emt 0:01:13]} h6 {[%emt 0:00:06]} 7. b4 {[%emt 0:03:15]} Bb6 {[%emt 0:00:01]} 8. a4 {[%emt 0:00:12]} a6 {[%emt 0:00:49]} 9. Nbd2 {[%emt 0:01:37]} O-O {[%emt 0:00:19]} 10. Bb3 {[%emt 0:00:42]} Be6 {[%emt 0:05:34]} 11. Nc4 {[%emt 0:07:18]} Nd7 {[%emt 0:06:55]} 12. Nxb6 {[%emt 0:11:27]} Nxb6 {[%emt 0:00:20]} 13. Be3 {[%emt 0:00:23]} Nd7 {[%emt 0:03:54]} 14. b5 {[%emt 0:11:23]} Bxb3 {[%emt 0:02:24]} 15. Qxb3 {[%emt 0:00:06]} Na5 {[%emt 0:00:04]} 16. Qb4 {[%emt 0:03:44]} b6 {[%emt 0:01:29]} 17. d4 {[%emt 0:00:13]} Qf6 {[%emt 0:06:13]} 18. bxa6 {[%emt 0:05:31]} Rxa6 {[%emt 0:05:00]} 19. Qb5 {[%emt 0:00:48]} Nb8 {[%emt 0:00:15]} 20. dxe5 {[%emt 0:02:30]} dxe5 {[%emt 0:00:07]} 21. Rfd1 {[%emt 0:11:44]} Nac6 {[%emt 0:06:03]} 22. Rd5 {[%emt 0:00:19]} Ra5 {[%emt 0:00:36]} 23. Qd3 {[%emt 0:02:05]} Ra8 {[%emt 0:14:19]} 24. Qb5 {[%emt 0:06:11]} Ra5 {[%emt 0:00:12]} 25. Qb3 {[%emt 0:01:05]} Qe7 {[%emt 0:14:50]} 26. Rad1 {[%emt 0:01:20]} Re8 {[%emt 0:09:24]} 27. R1d2 {[%emt 0:02:53]} Qe6 {[%emt 0:01:04]} 28. Qd1 {[%emt 0:04:32]} Ra8 {[%emt 0:01:44]} 29. c4 {[%emt 0:03:33]} Qg4 {[%emt 0:01:18]} 30. c5 {[%emt 0:05:06]} Qxe4 {[%emt 0:01:25]} 31. cxb6 {[%emt 0:00:28]} cxb6 {[%emt 0:00:12]} 32. Bxb6 {[%emt 0:01:50]} Qxa4 {[%emt 0:00:13]} 1/2-1/2

[Event "Budapest Spring Festival 2019"]
[Site "Budapest"]
[Date "2019.04.14"]
[Round "6.1"]
[White "Onischuk, Vladimir"]
[Black "Borhy, Marcell"]
[Result "1-0"]
[ECO "A04"]
[WhiteElo "2627"]
[BlackElo "2237"]
[Annotator "RC"]
[PlyCount "67"]
[EventDate "2019.04.09"]
[EventType "swiss"]
[EventCountry "HUN"]
[SourceTitle "playchess.com"]
[Source "ChessBase"]
[SourceQuality "1"]
[TimeControl "40/5400+30:1800+30"]

1. Nf3 {[%emt 0:00:30]} d6 {[%emt 0:00:12]} 2. g3 {[%emt 0:01:06]} e5 {[%emt 0:00:12]} 3. Bg2 {[%emt 0:00:45]} Nf6 {[%emt 0:00:21]} 4. O-O {[%emt 0:01:01]} Be7 {[%emt 0:00:18]} 5. d4 {[%emt 0:10:59]} e4 {[%emt 0:00:28]} 6. Ne1 {[%emt 0:05:03]} d5 {[%emt 0:00:22]} 7. c4 {[%emt 0:00:41]} c6 {[%emt 0:00:18]} 8. Nc3 {[%emt 0:00:49]} Be6 {[%emt 0:01:26]} 9. f3 {[%emt 0:04:29]} exf3 {[%emt 0:01:02]} 10. Nxf3 {[%emt 0:00:08]} Ne4 {[%emt 0:02:24]} 11. cxd5 {[%emt 0:07:37]} Nxc3 {[%emt 0:03:48]} 12. bxc3 {[%emt 0:00:35]} cxd5 {[%emt 0:00:34]} 13. Qb3 {[%emt 0:02:25]} b6 {[%emt 0:08:47]} 14. Ne5 {[%emt 0:02:20]} O-O {[%emt 0:02:54]} 15. a4 {[%emt 0:03:22]} Bf6 {[%emt 0:04:52]} 16. Nd3 {[%emt 0:05:27]} Na6 {[%emt 0:15:48]} 17. Bf4 {[%emt 0:13:19]} Rc8 {[%emt 0:06:10]} 18. a5 {[%emt 0:06:04]} bxa5 {[%emt 0:01:24]} 19. Qb5 {[%emt 0:00:54]} Nb8 {[%emt 0:13:38]} 20. Nc5 {[%emt 0:03:33]} Nc6 {[%emt 0:04:16]} 21. Kh1 {[%emt 0:10:14]} Be7 {[%emt 0:05:45]} 22. Nxe6 {[%emt 0:01:43]} fxe6 {[%emt 0:00:02]} 23. e4 {[%emt 0:00:08]} g5 {[%emt 0:11:21]} 24. Bd2 {[%emt 0:03:16]} Qb6 {[%emt 0:01:31]} 25. Qe2 {[%emt 0:01:00]} dxe4 {[%emt 0:03:18]} 26. Bxe4 {[%emt 0:00:35]} Rxf1+ {[%emt 0:01:19]} 27. Rxf1 {[%emt 0:00:05]} Rf8 {[%emt 0:00:08]} 28. Rxf8+ {[%emt 0:01:10]} Bxf8 {[%emt 0:00:14]} 29. Qh5 {[%emt 0:00:42]} Qc7 {[%emt 0:01:30]} 30. Qxg5+ {[%emt 0:00:10]} Bg7 {[%emt 0:02:07]} 31. Qh5 {[%emt 0:00:31]} Qd7 {[%emt 0:01:06]} 32. Qxh7+ {[%emt 0:00:29]} Kf8 {[%emt 0:00:07]} 33. Bh6 {[%emt 0:00:28]} a4 {[%emt 0:03:20]} 34. Qh8+ {[%emt 0:00:05]} 1-0

[Event "Budapest Spring Festival 2019"]
[Site "Budapest"]
[Date "2019.04.14"]
[Round "6.4"]
[White "Shyam, Sundar M."]
[Black "Timofeev, Artyom"]
[Result "1/2-1/2"]
[ECO "B09"]
[WhiteElo "2519"]
[BlackElo "2593"]
[Annotator "ChessBase"]
[PlyCount "29"]
[EventDate "2019.04.09"]
[EventType "swiss"]
[EventCountry "HUN"]
[SourceTitle "playchess.com"]
[Source "ChessBase"]
[SourceQuality "1"]
[TimeControl "40/5400+30:1800+30"]

1. e4 {[%emt 0:00:07]} d6 {[%emt 0:00:24]} 2. d4 {[%emt 0:00:06]} Nf6 {[%emt 0:00:06]} 3. Nc3 {[%emt 0:00:04]} g6 {[%emt 0:00:05]} 4. f4 {[%emt 0:00:03]} Bg7 {[%emt 0:00:16]} 5. Nf3 {[%emt 0:00:05]} O-O {[%emt 0:00:30]} 6. e5 {[%emt 0:00:05]} Nfd7 {[%emt 0:00:22]} 7. h4 {[%emt 0:05:14]} c5 {[%emt 0:00:20]} 8. h5 {[%emt 0:00:03]} cxd4 {[%emt 0:00:32]} 9. Qxd4 {[%emt 0:00:04]} dxe5 {[%emt 0:09:41]} 10. Qf2 {[%emt 0:00:06]} e4 {[%emt 0:12:13]} 11. Nxe4 {[%emt 0:11:21]} Nf6 {[%emt 0:01:30]} 12. Bd3 {[%emt 0:12:08]} Bf5 {[%emt 0:02:21]} 13. Nxf6+ {[%emt 0:10:35]} Bxf6 {[%emt 0:00:56]} 14. Bxf5 {[%emt 0:00:58]} gxf5 {[%emt 0:01:27]} 15. O-O {[%emt 0:07:42]} 1/2-1/2

[Event "Budapest Spring Festival 2019"]
[Site "Budapest"]
[Date "2019.04.14"]
[Round "6.19"]
[White "Akesson, Ralf"]
[Black "Swayams, Mishra"]
[Result "1/2-1/2"]
[ECO "E45"]
[WhiteElo "2346"]
[BlackElo "2478"]
[Annotator "ChessBase"]
[PlyCount "38"]
[EventDate "2019.04.09"]
[EventType "swiss"]
[EventCountry "HUN"]
[SourceTitle "playchess.com"]
[Source "ChessBase"]
[SourceQuality "1"]
[TimeControl "40/5400+30:1800+30"]

1. d4 {[%emt 0:00:03]} Nf6 {[%emt 0:01:52]} 2. c4 {[%emt 0:00:19]} e6 {[%emt 0:00:26]} 3. Nc3 {[%emt 0:00:48]} Bb4 {[%emt 0:00:11]} 4. e3 {[%emt 0:00:44]} b6 {[%emt 0:00:27]} 5. Nge2 {[%emt 0:02:36]} Ba6 {[%emt 0:01:04]} 6. a3 {[%emt 0:00:52]} Bxc3+ {[%emt 0:00:05]} 7. Nxc3 {[%emt 0:00:08]} d5 {[%emt 0:00:43]} 8. b3 {[%emt 0:05:41]} O-O {[%emt 0:04:00]} 9. Be2 {[%emt 0:01:29]} Nc6 {[%emt 0:01:04]} 10. cxd5 {[%emt 0:08:09]} Bxe2 {[%emt 0:00:31]} 11. Nxe2 {[%emt 0:00:05]} exd5 {[%emt 0:01:10]} 12. O-O {[%emt 0:00:35]} Re8 {[%emt 0:00:39]} 13. f3 {[%emt 0:00:54]} Qd7 {[%emt 0:01:16]} 14. Qd3 {[%emt 0:05:33]} a5 {[%emt 0:05:30]} 15. Ra2 {[%emt 0:02:29]} a4 {[%emt 0:02:54]} 16. b4 {[%emt 0:00:30]} Na7 {[%emt 0:08:09]} 17. Nc3 {[%emt 0:02:10]} Rad8 {[%emt 0:02:53]} 18. Qa6 {[%emt 0:13:03]} Ra8 {[%emt 0:03:09]} 19. Qd3 {[%emt 0:01:50]} Rad8 {[%emt 0:01:00]} 1/2-1/2

[Event "Budapest Spring Festival 2019"]
[Site "Budapest"]
[Date "2019.04.14"]
[Round "6.24"]
[White "Raja, Harshit"]
[Black "Nandhidhaa, P V"]
[Result "1-0"]
[ECO "B47"]
[WhiteElo "2432"]
[BlackElo "2314"]
[Annotator "NA"]
[PlyCount "65"]
[EventDate "2019.04.09"]
[EventType "swiss"]
[EventCountry "HUN"]
[SourceTitle "playchess.com"]
[Source "ChessBase"]
[SourceQuality "1"]
[TimeControl "40/5400+30:1800+30"]

1. e4 {[%emt 0:00:18]} c5 {[%emt 0:00:12]} 2. Nf3 {[%emt 0:00:11]} e6 {[%emt 0:00:06]} 3. d4 {[%emt 0:00:11]} cxd4 {[%emt 0:00:05]} 4. Nxd4 {[%emt 0:00:08]} Nc6 {[%emt 0:00:06]} 5. Nc3 {[%emt 0:00:13]} Qc7 {[%emt 0:00:11]} 6. g3 {[%emt 0:00:20]} a6 {[%emt 0:00:53]} 7. Bg2 {[%emt 0:01:01]} Nf6 {[%emt 0:00:11]} 8. O-O {[%emt 0:00:10]} h5 {[%emt 0:00:07]} 9. h3 {[%emt 0:00:05]} Bc5 {[%emt 0:00:18]} 10. Nxc6 {[%emt 0:02:41]} dxc6 {[%emt 0:02:10]} 11. e5 {[%emt 0:00:23]} Qxe5 {[%emt 0:01:41]} 12. Bf4 {[%emt 0:00:12]} Qd4 {[%emt 0:03:11]} 13. Qe1 {[%emt 0:00:27]} Be7 {[%emt 0:04:13]} 14. Be5 {[%emt 0:00:50]} Qa7 {[%emt 0:14:36]} 15. Rd1 {[%emt 0:01:34]} O-O {[%emt 0:00:35]} 16. Ne4 {[%emt 0:00:12]} Nxe4 {[%emt 0:02:08]} 17. Bxe4 {[%emt 0:00:08]} Qc5 {[%emt 0:08:52]} 18. Kh2 {[%emt 0:00:09]} h4 {[%emt 0:02:53]} 19. f4 {[%emt 0:01:00]} f5 {[%emt 0:07:37]} 20. Bf3 {[%emt 0:12:30]} Qxc2+ {[%emt 0:04:59]} 21. Rd2 {[%emt 0:04:05]} hxg3+ {[%emt 0:00:16]} 22. Kh1 {[%emt 0:03:05]} Qc4 {[%emt 0:00:30]} 23. Rg1 {[%emt 0:00:58]} Bh4 {[%emt 0:11:53]} 24. Rxg3 {[%emt 0:01:59]} Rf7 {[%emt 0:00:10]} 25. Bh5 {[%emt 0:04:07]} Bxg3 {[%emt 0:08:43]} 26. Qxg3 {[%emt 0:00:06]} Qc1+ {[%emt 0:01:13]} 27. Rd1 {[%emt 0:00:09]} Qxd1+ {[%emt 0:00:27]} 28. Bxd1 {[%emt 0:00:03]} b5 {[%emt 0:00:28]} 29. Bh5 {[%emt 0:00:24]} Re7 {[%emt 0:00:39]} 30. Qh4 {[%emt 0:01:18]} Rd7 {[%emt 0:02:39]} 31. Bg6 {[%emt 0:00:06]} Rd1+ {[%emt 0:02:05]} 32. Kg2 {[%emt 0:00:18]} Rd2+ {[%emt 0:00:53]} 33. Kf1 {[%emt 0:00:06]} 1-0

[Event "Budapest Spring Festival 2019"]
[Site "Budapest"]
[Date "2019.04.14"]
[Round "6.26"]
[White "Horvath, Dominik"]
[Black "Ruff, Maximilian"]
[Result "1-0"]
[ECO "A13"]
[WhiteElo "2412"]
[BlackElo "2313"]
[Annotator "ChessBase"]
[PlyCount "103"]
[EventDate "2019.04.09"]
[EventType "swiss"]
[EventCountry "HUN"]
[SourceTitle "playchess.com"]
[Source "ChessBase"]
[SourceQuality "1"]
[TimeControl "40/5400+30:1800+30"]

1. Nf3 {[%emt 0:00:05]} Nf6 {[%emt 0:00:26]} 2. c4 {[%emt 0:00:11]} e6 {[%emt 0:00:19]} 3. g3 {[%emt 0:00:17]} d5 {[%emt 0:00:14]} 4. Bg2 {[%emt 0:00:05]} dxc4 {[%emt 0:00:27]} 5. O-O {[%emt 0:00:28]} a6 {[%emt 0:04:42]} 6. Qc2 {[%emt 0:01:18]} b5 {[%emt 0:07:06]} 7. Ne1 {[%emt 0:02:11]} Nd5 {[%emt 0:01:40]} 8. d3 {[%emt 0:00:05]} cxd3 {[%emt 0:01:01]} 9. Nxd3 {[%emt 0:00:04]} Nd7 {[%emt 0:09:24]} 10. Nc3 {[%emt 0:07:07]} Bb7 {[%emt 0:10:34]} 11. Nxd5 {[%emt 0:06:43]} exd5 {[%emt 0:00:37]} 12. Rd1 {[%emt 0:03:02]} Be7 {[%emt 0:05:32]} 13. Nf4 {[%emt 0:07:30]} Nb6 {[%emt 0:02:17]} 14. Nxd5 {[%emt 0:09:40]} Nxd5 {[%emt 0:00:17]} 15. Bxd5 {[%emt 0:00:35]} Bxd5 {[%emt 0:00:07]} 16. e4 {[%emt 0:00:03]} O-O {[%emt 0:02:14]} 17. Rxd5 {[%emt 0:03:12]} Qc8 {[%emt 0:00:25]} 18. Qc6 {[%emt 0:02:04]} Qg4 {[%emt 0:13:19]} 19. Bf4 {[%emt 0:03:26]} Bb4 {[%emt 0:17:40]} 20. a3 {[%emt 0:22:58]} Ba5 {[%emt 0:02:50]} 21. a4 {[%emt 0:00:08]} Bb6 {[%emt 0:13:20]} 22. a5 {[%emt 0:00:31]} Ba7 {[%emt 0:00:15]} 23. Rd2 {[%emt 0:00:52]} Rae8 {[%emt 0:01:06]} 24. Qxa6 {[%emt 0:01:51]} Rxe4 {[%emt 0:02:47]} 25. Qxa7 {[%emt 0:01:51]} Rxf4 {[%emt 0:00:05]} 26. Qxc7 {[%emt 0:00:08]} Rc4 {[%emt 0:01:45]} 27. Qb7 {[%emt 0:01:19]} Qg5 {[%emt 0:01:34]} 28. Rad1 {[%emt 0:01:21]} h5 {[%emt 0:01:14]} 29. b3 {[%emt 0:08:05]} Rcc8 {[%emt 0:00:25]} 30. h4 {[%emt 0:00:26]} Qc5 {[%emt 0:00:36]} 31. Rd5 {[%emt 0:00:45]} Qc2 {[%emt 0:00:09]} 32. b4 {[%emt 0:04:33]} Qb3 {[%emt 0:00:42]} 33. R5d4 {[%emt 0:01:30]} Rb8 {[%emt 0:00:43]} 34. Qd5 {[%emt 0:02:45]} Qxd5 {[%emt 0:00:28]} 35. Rxd5 {[%emt 0:00:03]} g6 {[%emt 0:00:05]} 36. Rc1 {[%emt 0:00:12]} Rfe8 {[%emt 0:00:14]} 37. Rc6 {[%emt 0:06:19]} Re4 {[%emt 0:01:07]} 38. Rb6 {[%emt 0:01:07]} Rxb6 {[%emt 0:00:39]} 39. axb6 {[%emt 0:00:05]} Re7 {[%emt 0:00:07]} 40. Rxb5 {[%emt 0:00:00]} Rb7 {[%emt 0:00:00]} 41. Kg2 {[%emt 0:00:13]} Kf8 {[%emt 0:00:32]} 42. Kf3 {[%emt 0:00:08]} Ke7 {[%emt 0:00:15]} 43. Ke4 {[%emt 0:01:08]} Kd6 {[%emt 0:00:11]} 44. Kd4 {[%emt 0:00:03]} Kc6 {[%emt 0:00:45]} 45. Kc4 {[%emt 0:00:11]} Kd6 {[%emt 0:01:59]} 46. Kb3 {[%emt 0:00:59]} Kd7 {[%emt 0:00:29]} 47. Ka4 {[%emt 0:01:31]} Kc8 {[%emt 0:00:20]} 48. Ka5 {[%emt 0:00:36]} Re7 {[%emt 0:00:29]} 49. Rc5+ {[%emt 0:00:07]} Kb8 {[%emt 0:00:05]} 50. Rc7 {[%emt 0:00:24]} Re5+ {[%emt 0:00:13]} 51. Ka6 {[%emt 0:00:11]} f6 {[%emt 0:00:31]} 52. Rg7 {[%emt 0:00:11]} 1-0